[Event "DSOL-KO 2022"]
[Site "Germany"]
[Date "2022.05.20"]
[Round "3.1"]
[White "Martinez Perez, Geomar"]
[Black "Seer, Marcel"]
[Result "0-1"]
[ECO "B86"]
[WhiteElo "1620"]
[BlackElo "1757"]
[Annotator "NA RC COMBH"]
[PlyCount "88"]
[EventDate "2022.01.31"]
[EventType "team-tourn"]
[EventCountry "GER"]
[SourceTitle "playchess.com"]
[Source "ChessBase"]
[SourceQuality "1"]
[WhiteTeam "Findorffer SF"]
[BlackTeam "SC Bad Salzdetfurth III"]
[TimeControl "2700+15"]

1. e4 c5 2. Nf3 d6 3. Bc4 Nf6 4. Nc3 a6 5. a4 e6 6. d4 cxd4 7. Nxd4 Nxe4 8. Nxe4 d5 9. Bd3 dxe4 10. Bxe4 Bc5 11. Be3 Qh4 12. Bf3 O-O 13. Qe2 Bxd4 14. g3 Qf6 15. O-O Bxe3 16. fxe3 Qxb2 17. Rab1 Qc3 18. Rb3 Qc7 19. Rfb1 Nc6 20. Be4 f5 21. Bd3 Ne5 22. Rb6 Nxd3 23. cxd3 Qc5 24. d4 Qe7 25. a5 Rd8 26. Qd2 Rd6 27. R6b4 Rb8 28. Rc1 e5 29. Rbc4 Be6 30. Rc7 Rd7 31. Rc8+ Rxc8 32. Rxc8+ Kf7 33. Qe2 g6 34. Rh8 Kg7 35. Ra8 exd4 36. exd4 Kf7 37. Qe5 Rd8 38. Ra7 Bd5 39. Qf4 Qe1+ 40. Qf1 Qxf1+ 41. Kxf1 Ke7 42. Ke2 Kd7 43. Ke3 Kc7 44. h4 Kb8 0-1

[Event "DSOL-KO 2022"]
[Site "Germany"]
[Date "2022.05.20"]
[Round "3.1"]
[White "Porro, Michele"]
[Black "Lieberwirth, Nele"]
[Result "0-1"]
[ECO "B10"]
[WhiteElo "1618"]
[BlackElo "1498"]
[Annotator "NA RC COMBH"]
[PlyCount "150"]
[EventDate "2022.01.31"]
[EventType "team-tourn"]
[EventCountry "GER"]
[SourceTitle "playchess.com"]
[Source "ChessBase"]
[SourceQuality "1"]
[WhiteTeam "SC Leinfelden II"]
[BlackTeam "SG Turm Leipzig II"]
[TimeControl "2700+15"]

1. e4 c6 2. Bc4 g6 3. Nf3 d5 4. exd5 cxd5 5. Bd3 Nf6 6. Nc3 Nc6 7. O-O Bg7 8. a3 a5 9. Bb5 O-O 10. d4 Bg4 11. h3 Bxf3 12. Qxf3 Nxd4 13. Qd3 Nc6 14. Bf4 e6 15. Rae1 Qb6 16. Be3 d4 17. Na4 Qd8 18. Bf4 Nd5 19. Bd2 e5 20. Re4 Qd6 21. Bg5 f6 22. Bh4 Kh8 23. Bg3 Rae8 24. h4 f5 25. Ree1 Qf6 26. Nc5 Re7 27. Bc4 Qd6 28. Na4 Rb8 29. Bb5 f4 30. Bh2 Qf6 31. Qh3 Qe6 32. Qf3 Nc7 33. Nc5 Qd6 34. Ne4 Qd5 35. Bd3 Ne6 36. b3 b5 37. Rb1 b4 38. a4 Ree8 39. Bc4 Qd7 40. Qg4 Nf8 41. Qe2 Qe7 42. h5 g5 43. Nc5 Qxc5 44. f3 Qd6 45. Kh1 Qh6 46. g4 fxg3 47. Qg2 gxh2 48. Qxh2 Ne6 49. Bxe6 Qxe6 50. Rg1 Qf6 51. Rbf1 Bh6 52. Qg3 Qf4 53. Qg4 Qxg4 54. fxg4 Rf8 55. Re1 Bg7 56. Rg3 h6 57. Rg2 Rbc8 58. Rh2 Ne7 59. Rhe2 Nd5 60. Rg2 Ne3 61. Rd2 Rxc2 62. Rxc2 Nxc2 63. Rc1 Ne3 64. Rc5 Rd8 65. Rxa5 d3 66. Rxe5 Bxe5 67. Kg1 d2 68. Kf2 d1=Q 69. Kxe3 Qd3+ 70. Kf2 Qg3+ 71. Ke2 Qd3+ 72. Kf2 Bg3+ 73. Kg2 Qe2+ 74. Kg1 Qf2+ 75. Kh1 Qh2# 0-1

[Event "DSOL-KO 2022"]
[Site "Germany"]
[Date "2022.05.20"]
[Round "3.1"]
[White "Stegert, Noah Niclas"]
[Black "Schuck, Nils"]
[Result "0-1"]
[ECO "C02"]
[WhiteElo "1610"]
[BlackElo "1909"]
[Annotator "TA"]
[PlyCount "98"]
[EventDate "2022.01.31"]
[EventType "team-tourn"]
[EventCountry "GER"]
[SourceTitle "playchess.com"]
[Source "ChessBase"]
[SourceQuality "1"]
[WhiteTeam "SC Agon Neumünster"]
[BlackTeam "SF Ochtendung I"]
[TimeControl "2700+15"]

{[%evp 9,98,0,0,-94,-110,-172,-178,-169,-170,-175,-160,-155,-128,-158,-169,-184,-137,-160,-149,-160,-141,-153,-158,-156,-162,-171,-151,-181,-183,-199,-203,-364,-370,-454,-449,-566,-369,-362,-343,-333,-329,-319,-262,-255,-255,-262,-262,-339,-339,-387,-381,-477,-400,-532,-532,-529,-514,-514,-507,-561,-558,-708,-500,-953,-710,-972,-893,-792,-759,-906,-854,-29976,-29977,-29977,-29978,-29979,-29980,-29981,-29980,-29986,-29984,-29984,-29984,-29984,-29985,-29985,-29986,-29987,-29988,-29988,-29989]} 1. e4 e6 2. d4 d5 3. e5 c5 4. c3 Nc6 5. Nf3 Qb6 6. Ng5 {C02: French: Advance Variation.} (6. Na3 $11) 6... cxd4 7. cxd4 (7. Nf3 $17) 7... Qxd4 $19 8. Qxd4 {Black is clearly better.} Nxd4 {[#]} 9. Bd3 $146 ({Predecessor:} 9. Be3 Nc2+ 10. Kd1 Nxa1 11. Nc3 Bd7 12. Bd3 Be7 13. Nf3 {0-1 (13) Haufiku,T-Joao,D (1527) Windhoek 2014}) 9... f6 10. exf6 Nxf6 11. Be3 Nc6 12. Nd2 Bb4 (12... e5 $19 {Threatens to win with ...d4.} 13. f3 Be7) 13. a3 Bd6 14. Rc1 O-O 15. Nb3 h6 16. Nf3 e5 {Inhibits Nbd4.} 17. Bb5 d4 18. Bd2 Be6 19. Bxc6 bxc6 ({Stronger than} 19... Bxb3 20. Bxb7 Rab8 21. Bc6 $17) 20. Nbxd4 {[#]} (20. Na5) 20... exd4 21. Rxc6 Rad8 ({Avoid the trap} 21... Ne4 $2 22. O-O $19) 22. Ba5 Rfe8 23. O-O Bd5 24. Bxd8 Bxc6 {A strong pair of Bishops.} 25. Bxf6 Bxf3 26. Bxd4 Be2 27. Re1 a5 {[%cal Ba7a5,Ba5a4][%mdl 32]} 28. f3 a4 29. Kf2 Bb5 {White must now prevent ...Rxe1.} 30. Rxe8+ Bxe8 31. g3 Kf7 32. Ke3 Bc6 33. f4 g6 34. Kd3 Ke6 35. Ke3 Bg2 36. Bg7 (36. Kd3 $142 Kd5 37. Kc3) 36... h5 37. Kf2 Be4 38. Ke3 Kd5 {[#] Strongly threatening ...Bc5+.} 39. Bd4 Bf5 {...Bc5 is the strong threat.} 40. Be5 Bxe5 {Black mates.} 41. fxe5 Kxe5 {KB-KP} 42. h4 Be4 43. Kf2 Kf5 44. Kg1 Kg4 45. Kf2 Bf3 46. Ke3 Kxg3 47. Kd4 Kxh4 48. Kc4 Bd1 49. Kd5 Bb3+ {Weighted Error Value: White=0.61/Black=0.26 (precise)} 0-1

[Event "DSOL-KO 2022"]
[Site "Germany"]
[Date "2022.05.20"]
[Round "3.1"]
[White "Goldmann, David"]
[Black "Bahr, Torsten"]
[Result "1/2-1/2"]
[ECO "B13"]
[WhiteElo "1601"]
[BlackElo "1785"]
[Annotator "NA COMBH"]
[PlyCount "51"]
[EventDate "2022.01.31"]
[EventType "team-tourn"]
[EventCountry "GER"]
[SourceTitle "playchess.com"]
[Source "ChessBase"]
[SourceQuality "1"]
[WhiteTeam "Hamburger SK IV"]
[BlackTeam "SC Wittstock I"]
[TimeControl "2700+15"]

1. e4 c6 2. d4 d5 3. exd5 cxd5 4. c4 Nf6 5. Nc3 Nc6 6. Bg5 Ne4 7. Nxe4 dxe4 8. d5 Ne5 9. Qd4 f6 10. Qxe4 Qb6 11. Bc1 e6 12. Be2 Bb4+ 13. Kf1 Bc5 14. f4 Nf7 15. dxe6 Qxe6 16. Qxe6+ Bxe6 17. Nf3 O-O-O 18. b3 Rhe8 19. Bb2 Nh6 20. Rd1 Rxd1+ 21. Bxd1 Nf5 22. Bc1 Bd7 23. g4 Ne3+ 24. Bxe3 Rxe3 25. Kg2 Bxg4 26. Rf1 1/2-1/2

[Event "DSOL-KO 2022"]
[Site "Germany"]
[Date "2022.05.20"]
[Round "3.1"]
[White "Kretschmer, Oliver"]
[Black "Henrich, Benno"]
[Result "1-0"]
[ECO "D02"]
[WhiteElo "1589"]
[BlackElo "1496"]
[Annotator "NA RC COMBH"]
[PlyCount "105"]
[EventDate "2022.01.31"]
[EventType "team-tourn"]
[EventCountry "GER"]
[SourceTitle "playchess.com"]
[Source "ChessBase"]
[SourceQuality "1"]
[WhiteTeam "Lok Raw Cottbus"]
[BlackTeam "SC Landskrone"]
[TimeControl "2700+15"]

1. d4 d5 2. Bf4 Bf5 3. Nf3 Nf6 4. e3 e6 5. Bd3 Bxd3 6. Qxd3 a6 7. Nbd2 Nbd7 8. c3 Be7 9. e4 dxe4 10. Nxe4 O-O 11. h3 Rc8 12. O-O c5 13. Nd6 Bxd6 14. Bxd6 Re8 15. Rad1 cxd4 16. Qxd4 Qb6 17. Qxb6 Nxb6 18. Nd2 Na4 19. Ba3 b5 20. Rfe1 h6 21. Ne4 Nxe4 22. Rxe4 Red8 23. Red4 Rxd4 24. Rxd4 Rc6 25. Rd8+ Kh7 26. Ra8 g5 27. Kf1 Kg6 28. Ke1 Kf6 29. Kd2 Nb6 30. Rh8 Kg7 31. Rd8 Nc4+ 32. Kc2 Nxa3+ 33. bxa3 Kg6 34. Kb3 Kf5 35. Rd4 e5 36. g4+ Ke6 37. Rd8 f5 38. Re8+ Kf7 39. Rxe5 fxg4 40. hxg4 Kf6 41. Re4 Kf7 42. f3 Rf6 43. Re3 Rc6 44. a4 bxa4+ 45. Kxa4 Kf6 46. Kb4 Kf7 47. a4 Kf6 48. c4 Kf7 49. c5 Kf6 50. Kc4 Kf7 51. Kd5 Rf6 52. c6 Rf4 53. c7 1-0

[Event "DSOL-KO 2022"]
[Site "Germany"]
[Date "2022.05.20"]
[Round "3.1"]
[White "Finder, Adrianos"]
[Black "Goetze, Jan Philipp"]
[Result "0-1"]
[ECO "D02"]
[WhiteElo "1586"]
[BlackElo "1726"]
[Annotator "NA COMBH"]
[PlyCount "80"]
[EventDate "2022.01.31"]
[EventType "team-tourn"]
[EventCountry "GER"]
[SourceTitle "playchess.com"]
[Source "ChessBase"]
[SourceQuality "1"]
[WhiteTeam "SF Seelscheid II"]
[BlackTeam "Bochumer SV"]
[TimeControl "2700+15"]

1. d4 d5 2. Nf3 Nf6 3. Bf4 e6 4. e3 Bd6 5. Bg3 O-O 6. Nbd2 Nbd7 7. Bd3 Bxg3 8. hxg3 c5 9. Ne5 c4 10. Be2 Qc7 11. f4 Nxe5 12. dxe5 Nd7 13. c3 b5 14. Qc2 g6 15. O-O-O Nc5 16. Nf3 Ne4 17. Ng5 Nxg5 18. fxg5 Qxe5 19. Kb1 Bb7 20. Bh5 Qxg5 21. Bf3 Qxe3 22. Rh3 f5 23. Rdh1 Rf7 24. Qd1 Qd3+ 25. Qc2 Qxc2+ 26. Kxc2 e5 27. g4 e4 28. Be2 a5 29. b3 Re8 30. Rd1 f4 31. b4 axb4 32. cxb4 e3 33. g3 f3 34. Bxf3 Rxf3 35. a3 e2 36. Re1 Rf1 37. Kd2 Rxe1 38. Kxe1 d4 39. Rh2 d3 40. g5 c3 0-1

[Event "DSOL-KO 2022"]
[Site "Germany"]
[Date "2022.05.20"]
[Round "3.1"]
[White "Gil, Arthur"]
[Black "Genov, Valentin"]
[Result "1-0"]
[ECO "B21"]
[WhiteElo "1560"]
[BlackElo "1912"]
[Annotator "TA"]
[PlyCount "93"]
[EventDate "2022.01.31"]
[EventType "team-tourn"]
[EventCountry "GER"]
[SourceTitle "playchess.com"]
[Source "ChessBase"]
[SourceQuality "1"]
[WhiteTeam "SU Ebersberg-Grafing"]
[BlackTeam "Hamburger SK II"]
[TimeControl "2700+15"]

{[%evp 16,93,0,-39,39,32,49,32,21,19,227,235,345,379,364,211,348,0,0,0,0,-563,-112,-115,-102,-69,-48,-209,-218,-250,-251,-245,-227,-314,-314,-349,-189,-216,-114,-403,-275,-275,-263,-368,-247,-244,-135,-131,691,693,695,700,700,700,700,700,691,692,692,691,676,654,628,609,826,780,1128,926,3969,2560,1910,1902,4133,836,5214,1908,2354,2250,29988,29988]} 1. e4 c5 2. Nf3 d6 3. d4 cxd4 4. c3 dxc3 5. Nxc3 e6 6. Bc4 Be7 7. O-O Nf6 8. Qe2 a6 9. a4 b6 {B21: Sicilian: 2 f4 and Morra Gambit.} ({Black should try} 9... Nc6 $15) 10. Rd1 $14 {[#]} Nbd7 $146 ({Predecessor:} 10... Qc7 11. h3 Bb7 12. Bf4 Nbd7 13. Rac1 Qb8 14. Rd2 O-O 15. Rcd1 Ne5 16. Nxe5 dxe5 17. Bg5 {0-1 (31) Levy,M-Mateo,R Valetta 1980}) 11. e5 dxe5 {White is slightly better.} 12. Nxe5 Qc7 $2 (12... O-O $11 {and Black stays safe.}) 13. Nxf7 $1 $18 {[%mdl 64] Remove Defender, Decoy} Kxf7 (13... O-O $142) 14. Qxe6+ Ke8 15. Qf7+ Kd8 16. Be3 $2 (16. Qxg7 Qxc4 17. Qxh8+ Kc7 $16) (16. Re1 Bb4 17. Bg5 (17. Qxg7 Qxc4 18. Qxh8+ Kc7 $14) 17... Rf8 $11) (16. Nd5 $18 Nxd5 17. Bxd5) 16... Rf8 $1 $11 17. Qe6 {Chess con chili.} Ke8 $1 {Threatens to win with ...Nc5.} 18. Ne4 {[%mdl 8192]} (18. Nd5 $11 Nxd5 19. Bxd5) 18... Nxe4 $2 (18... Ne5 $19 {and Black stays clearly on top.} 19. Nd6+ (19. Nxf6+ $2 gxf6 20. Qd5 Bb7 $19) 19... Qxd6 $3 {[%mdl 512]} 20. Qxd6 Bxd6) 19. Qxe4 $17 Bb7 20. Qe6 ({Don't go for} 20. Bd5 $2 Nf6 21. Bxb7 Nxe4 $19) 20... Qc6 (20... Rd8 $5 {[%cal Rc7c6]} 21. Rac1 (21. Bg5 Qc5 $17) 21... Nc5 22. Rxd8+ Qxd8 $17) 21. Qxc6 (21. Qh3 $1 $15) 21... Bxc6 $19 22. Re1 Kd8 ({And not} 22... Ne5 23. Bf1) 23. a5 bxa5 24. Rac1 Bb5 25. Be6 Bf6 (25... Rc8 $142 26. Bd5 Bb4 27. Rxc8+ Kxc8 28. Rc1+ Kd8) 26. Rcd1 Rb8 ({Stronger than} 26... Bxb2 27. Bc5 Rf6 28. Bb6+ Kc8 29. Bxa5) (26... Re8 $19 27. Bb6+ Kc8 28. Bxa5 Ra7) 27. Rd6 {[%mdl 8192]} (27. Bd2 $17 {is a better defense.} Be7 28. Bxa5+ Ke8 29. Re3) 27... Be7 28. Rd4 h6 29. h3 Ke8 30. Bf4 {[#]} Rb6 (30... Rxf4 $1 $19 31. Rxf4 Bf6 32. Bd5+ Kd8) 31. Bc7 $17 {[#] Strongly threatening Bxd7+.} Rc6 $2 {[%mdl 8192]} 32. Bxd7+ $18 Kf7 33. Bxc6 Bxc6 {[#]} 34. Rxe7+ $1 {[%mdl 512]} Kxe7 {[%mdl 4096] Endgame KRB-KRB} 35. Bd6+ Ke8 36. Bxf8 Kxf8 {KR-KB} 37. Rd6 Bb5 38. f4 Kf7 39. Kf2 g6 40. g4 {f5 is the strong threat.} Kg7 41. h4 Kf7 42. Ke3 {Hoping for f5.} Kg7 43. Kd4 Kf7 44. Ke5 (44. h5 $142 gxh5 45. gxh5) 44... Kg7 45. Rb6 (45. f5 $142 gxf5 46. gxf5) 45... h5 46. g5 {Intending Rb7+ and mate.} Kg8 47. Rxg6+ {Weighted Error Value: White=0.71/Black=1.06} 1-0

[Event "DSOL-KO 2022"]
[Site "Germany"]
[Date "2022.05.20"]
[Round "3.1"]
[White "Matthes, Benjamin"]
[Black "Malchereck, Zion"]
[Result "1-0"]
[ECO "B22"]
[WhiteElo "1546"]
[BlackElo "1923"]
[Annotator "TA"]
[PlyCount "49"]
[EventDate "2022.01.31"]
[EventType "team-tourn"]
[EventCountry "GER"]
[SourceTitle "playchess.com"]
[Source "ChessBase"]
[SourceQuality "1"]
[WhiteTeam "SC Wittstock I"]
[BlackTeam "Hamburger SK IV"]
[TimeControl "2700+15"]

{[%evp 10,49,5,8,14,-47,-24,-28,-20,-27,-22,-23,-20,-21,7,10,63,41,84,64,66,0,483,461,466,454,482,396,411,385,403,396,423,408,397,391,508,485,29997,1409,29998,29999]} 1. e4 {[%cal Be2e4,Be4e5][%mdl 32]} c5 2. Nf3 Nc6 3. c3 Nf6 4. e5 Nd5 5. d4 cxd4 6. Bc4 Nb6 {B22: Sicilian: 2 c3.} 7. Bb5 ({White should try} 7. Bb3 $11) 7... dxc3 (7... a6 $5 {[%cal Ra6b5]} 8. Be2 d6 9. cxd4 dxe5 10. dxe5 Qxd1+ 11. Bxd1 Bf5 $15) 8. Nxc3 e6 {Black has an edge.} 9. O-O Be7 {[#] Prevents Bg5.} 10. Re1 $146 ({Predecessor:} 10. Bf4 O-O 11. Ne4 f6 12. exf6 Bxf6 13. Nxf6+ Qxf6 14. Bd6 Rf7 15. Qc2 Nd5 16. Bxc6 bxc6 {½-½ (30) Galerne,R (1827)-Galvin,J (1990) ICCF email 2012}) 10... O-O 11. Bf4 a6 12. Bd3 Kh8 ({Black should play} 12... Nd5 $11 13. Nxd5 exd5) 13. Bc2 {[%mdl 1024] White has compensation. 0x0.0024da35278adp-1022s more active pieces. The black rooks are badly placed.} Nb4 {Prevents Qd3.} 14. Bb3 {Prevents Nc4.} Nc6 15. Bc2 $40 {[%mdl 128] White mounts an attack.} (15. Rc1 $14) 15... Nc4 $2 {[%mdl 8192]} (15... Nb4 $11) 16. Qd3 $1 $18 {[%csl Gc2,LRc4,LRh7][%cal Rd3h7] [#]} g6 17. Qxc4 b5 18. Qd3 Nb4 19. Qd2 Nxc2 20. Qxc2 Bb7 21. Qd2 Bxf3 22. gxf3 Bb4 23. Bg5 Qc7 (23... Be7 $18 24. Bxe7 Qxe7) 24. Bf6+ Kg8 25. Qh6 {Weighted Error Value: White=0.22 (precise) /Black=0.93} 1-0

[Event "DSOL-KO 2022"]
[Site "Germany"]
[Date "2022.05.20"]
[Round "3.1"]
[White "Stegner, Marco"]
[Black "Palme, Holger"]
[Result "0-1"]
[ECO "D00"]
[WhiteElo "1495"]
[BlackElo "1961"]
[Annotator "TA"]
[PlyCount "126"]
[EventDate "2022.01.31"]
[EventType "team-tourn"]
[EventCountry "GER"]
[SourceTitle "playchess.com"]
[Source "ChessBase"]
[SourceQuality "1"]
[WhiteTeam "SC Landskrone"]
[BlackTeam "Lok Raw Cottbus"]
[TimeControl "2700+15"]

{[%evp 9,126,30,22,0,37,5,55,-3,0,-16,-12,-3,-11,-3,-2,0,7,8,10,9,35,9,19,-35,51,39,77,58,99,98,102,93,125,122,187,153,162,102,189,220,209,195,278,270,936,899,1086,543,550,543,545,449,462,416,471,392,382,301,467,371,356,222,222,211,211,202,425,410,410,360,498,491,527,448,514,560,514,479,831,333,5222,1403,4882,3722,1433,1352,6110,933,1197,746,814,812,778,750,1294,899,1057,970,5900,647,571,615,749,49,49,49,49,49,49,43,45,68,82,0,1222,1141,4906,-29998,-29999]} 1. d4 Nf6 2. Bf4 d5 3. e3 c6 4. Bd3 Qb6 5. b3 g6 6. Nf3 {D00: 1 d4 d5: Unusual lines.} Bg7 7. Nbd2 Nbd7 (7... c5 $11) 8. O-O {[#]} (8. h3 $1 $14) 8... Nh5 $146 ({Predecessor:} 8... Nf8 9. c4 Ne6 10. Bg3 O-O 11. c5 Qd8 12. b4 Nh5 13. Bh4 f5 14. Ng5 Nxg5 15. Bxg5 {½-½ (73) Timko,M (2052)-Lihosith,P (1894) Slovakia 2018}) 9. Bg5 h6 10. Bh4 g5 11. Ne1 $36 {[%mdl 2048] Black is under pressure.} Ndf6 12. Be2 $1 gxh4 13. Bxh5 Bf5 14. c4 {[%cal Bc2c4,Bc4c5][%mdl 32]} e6 15. c5 Qc7 16. b4 (16. Be2 $11) 16... a6 (16... h3 $15) 17. Be2 $14 Rg8 18. a4 Ne4 19. Nxe4 Bxe4 20. Bd3 Bxd3 21. Nxd3 ({Don't do} 21. Qxd3 $6 e5 $14) 21... Qe7 (21... e5 $16) 22. b5 Qg5 {[%cal Og7d4] And now ...Bxd4! would win.} 23. g3 ({White should play} 23. Ne1 $18) 23... Qf5 (23... h5 $16) 24. bxc6 bxc6 25. Rb1 Ke7 (25... h5 {is a better defense.} 26. Rb7 Kf8) 26. Rb7+ $18 Kf6 $2 (26... Kf8 27. Nb4 Bf6 28. Nxc6 Kg7) 27. Ne5 Raf8 28. Nd7+ Kg5 29. Nxf8 Bxf8 30. f4+ Kf6 31. Rf3 h5 32. Rb2 Be7 33. Qc2 Qh3 (33... Qg4 $142 34. Qf2 a5) 34. Qg2 Qf5 35. Rf1 hxg3 36. hxg3 h4 37. Rf3 Qd3 $2 (37... Bd8 38. Qf1 Ba5) 38. g4 Bd8 39. g5+ Ke7 40. Rb7+ Ke8 41. Rh3 Qd1+ 42. Kh2 Qd3 43. Qf2 f6 (43... Rh8 $142 44. Rf3 Qf5) 44. gxf6 (44. e4 $142 Qxe4 45. Re3) 44... Rh8 $2 (44... Bxf6 45. Rb8+ Kf7 46. Rb7+ Ke8) 45. f7+ Kf8 46. Rf3 {Threatening mate with f5.} Qf5 47. Qg2 Qd3 48. Qf1 (48. Rb8 $142 h3 49. Rxd8+ Kxf7 50. Rd7+ (50. Rxh8 hxg2 51. Kxg2 Qc2+ 52. Kh3 Qf5+ 53. Kg2 Qc2+ 54. Rf2 Qe4+ 55. Rf3 Qc2+ $11) 50... Ke8 51. Qg1 $1 Qe2+ 52. Rf2 Qxf2+ 53. Qxf2 Kxd7 54. Qb2) 48... Qf5 49. Rh3 Qc2+ 50. Qg2 Qf5 51. Ra7 Qd3 52. Rd7 Be7 53. Rc7 {f5 would kill now.} Kxf7 {[#]} 54. Rxc6 (54. Rxe7+ $142 $1 {[%mdl 512]} Kxe7 55. Qg7+ Ke8 56. Qxh8+ Kf7 57. Qxh4 Qe2+ 58. Kg1 Qd1+ 59. Kg2 Qd2+ 60. Qf2) 54... Rg8 55. Qf2 {[%cal Of4f5]} Rg3 56. Rxg3 $2 ({Only move:} 56. f5 $18 {[%cal Oh3h4] White wants to mate with Rxh4!} exf5 57. Rxg3 hxg3+ 58. Kxg3) 56... hxg3+ $14 57. Qxg3 $18 {[%mdl 4096] Endgame KQR-KQB} Qe2+ 58. Kh3 {Hoping for Rc7.} Qh5+ $1 59. Kg2 Qe2+ 60. Qf2 Qg4+ 61. Kf1 (61. Kh2 $16 {Black must now prevent Rc7.} Qh5+ 62. Kg1) 61... Bh4 $2 {[%mdl 8192]} (61... Qd1+ $11 62. Kg2 Qg4+ 63. Kh1 Qh5+ 64. Kg1 Qg4+ 65. Kf1 Qd1+ 66. Kg2 Qg4+) 62. Rc7+ Kf6 63. Qg1 $4 {[%mdl 8192]} (63. Qe2 $18 Qf5 64. Rb7) 63... Qf3+ {Weighted Error Value: White=0.53/Black=0.40} 0-1

[Event "DSOL-KO 2022"]
[Site "Germany"]
[Date "2022.05.20"]
[Round "3.1"]
[White "Bast, Patrick"]
[Black "Aminmansour, Bardia"]
[Result "1-0"]
[ECO "C11"]
[WhiteElo "1469"]
[BlackElo "1880"]
[Annotator "NA COMBH"]
[PlyCount "41"]
[EventDate "2022.01.31"]
[EventType "team-tourn"]
[EventCountry "GER"]
[SourceTitle "playchess.com"]
[Source "ChessBase"]
[SourceQuality "1"]
[WhiteTeam "SF Ochtendung I"]
[BlackTeam "SC Agon Neumünster"]
[TimeControl "2700+15"]

1. e4 e6 2. Nf3 d5 3. Nc3 c5 4. d4 Nf6 5. Bd3 Nc6 6. e5 Nd7 7. Ne2 cxd4 8. Nexd4 Bc5 9. Nxc6 bxc6 10. O-O O-O 11. Ng5 h6 12. Qh5 Nxe5 13. Bh7+ Kh8 14. Bd3 Nxd3 15. cxd3 Qf6 16. Nf3 Bd6 17. Bg5 Qxb2 18. d4 Rb8 19. Bxh6 Kg8 20. Qg5 g6 21. Qf6 1-0